Department Family,Entity,Date,Expenses Type,Expense Area,Supplier,Transaction Number,  Total  ,
Department of Health,The Christie NHS Foundation Trust,30/09/2021,All Wards & Departments,The Christie NHS FT Balance,NHS SUPPLY CHAIN,675834,"70,610.88",
Department of Health,The Christie NHS Foundation Trust,30/09/2021,All Wards & Departments,The Christie NHS FT Balance,NHS SUPPLY CHAIN,675835,"64,933.00",
Department of Health,The Christie NHS Foundation Trust,09/09/2021,All Wards & Departments,The Christie NHS FT Balance,NHS SUPPLY CHAIN,674256,"78,065.44",
Department of Health,The Christie NHS Foundation Trust,09/09/2021,All Wards & Departments,The Christie NHS FT Balance,NHS SUPPLY CHAIN,674257,"76,739.40",
Department of Health,The Christie NHS Foundation Trust,30/09/2021,All Wards & Departments,The Christie NHS FT Balance,NHS SUPPLY CHAIN,675837,"44,913.75",
Department of Health,The Christie NHS Foundation Trust,23/09/2021,Drugs, Drugs,ALCURA UK LIMITED,676465,"56,262.49",
Department of Health,The Christie NHS Foundation Trust,02/09/2021,Drugs, Drugs,BAXTER HEALTHCARE LTD,673629,"59,265.95",
Department of Health,The Christie NHS Foundation Trust,23/09/2021,Drugs, Drugs,BAXTER HEALTHCARE LTD,675303,"64,955.46",
Department of Health,The Christie NHS Foundation Trust,23/09/2021,Drugs, Drugs,BAXTER HEALTHCARE LTD,675308,"85,849.42",
Department of Health,The Christie NHS Foundation Trust,23/09/2021,Drugs, Drugs,BAXTER HEALTHCARE LTD,675342,"48,363.40",
Department of Health,The Christie NHS Foundation Trust,30/09/2021,Drugs, Drugs,BAXTER HEALTHCARE LTD,675347,"92,481.79",
Department of Health,The Christie NHS Foundation Trust,30/09/2021,Drugs, Drugs,BAXTER HEALTHCARE LTD,675490,"78,780.88",
Department of Health,The Christie NHS Foundation Trust,16/09/2021,Drugs, Drugs,BAXTER HEALTHCARE LTD,674528,"99,404.74",
Department of Health,The Christie NHS Foundation Trust,02/09/2021,Drugs, Drugs,BAXTER HEALTHCARE LTD,674030,"55,976.52",
Department of Health,The Christie NHS Foundation Trust,09/09/2021,Drugs, Drugs,BAXTER HEALTHCARE LTD,674032,"70,254.91",
Department of Health,The Christie NHS Foundation Trust,02/09/2021,Drugs, Drugs,BAXTER HEALTHCARE LTD,673416,"52,368.01",
Department of Health,The Christie NHS Foundation Trust,02/09/2021,Drugs, Drugs,BAXTER HEALTHCARE LTD,673425,"268,353.13",
Department of Health,The Christie NHS Foundation Trust,09/09/2021,Drugs, Drugs,BAXTER HEALTHCARE LTD,674484,"148,436.30",
Department of Health,The Christie NHS Foundation Trust,16/09/2021,Drugs, Drugs,BAXTER HEALTHCARE LTD,674486,"162,808.84",
Department of Health,The Christie NHS Foundation Trust,30/09/2021,Drugs, Drugs,BAXTER HEALTHCARE LTD,675862,"73,706.95",
Department of Health,The Christie NHS Foundation Trust,09/09/2021,Drugs, Drugs,BAXTER HEALTHCARE LTD,674033,"59,290.40",
Department of Health,The Christie NHS Foundation Trust,09/09/2021,Drugs, Drugs,BAXTER HEALTHCARE LTD,674034,"88,385.84",
Department of Health,The Christie NHS Foundation Trust,16/09/2021,Drugs, Drugs,BAXTER HEALTHCARE LTD,675344,"358,148.40",
Department of Health,The Christie NHS Foundation Trust,16/09/2021,Drugs, Drugs,BAXTER HEALTHCARE LTD,675296,"140,168.95",
Department of Health,The Christie NHS Foundation Trust,23/09/2021,Drugs, Drugs,BAXTER HEALTHCARE LTD,675325,"155,362.38",
Department of Health,The Christie NHS Foundation Trust,30/09/2021,Drugs, Drugs,BAXTER HEALTHCARE LTD,675345,"131,115.49",
Department of Health,The Christie NHS Foundation Trust,30/09/2021,Drugs, Drugs,BAXTER HEALTHCARE LTD,676330,"136,760.44",
Department of Health,The Christie NHS Foundation Trust,02/09/2021,Drugs, Drugs,EAST CHESHIRE NHS TRUST,673540,"75,559.15",
Department of Health,The Christie NHS Foundation Trust,09/09/2021,Drugs, Drugs,HEALTHCARE AT HOME LTD,675298,"45,913.00",
Department of Health,The Christie NHS Foundation Trust,09/09/2021,Drugs, Drugs,HEALTHCARE AT HOME LTD,675428,"32,393.00",
Department of Health,The Christie NHS Foundation Trust,02/09/2021,Drugs, Drugs,HEALTHCARE AT HOME LTD,674692,"38,715.00",
Department of Health,The Christie NHS Foundation Trust,23/09/2021,Drugs, Drugs,HEALTHCARE AT HOME LTD,676269,"39,612.00",
Department of Health,The Christie NHS Foundation Trust,09/09/2021,Drugs, Drugs,LLOYDSPHARMACY CLINICAL HOMECARE,675479,"31,078.60",
Department of Health,The Christie NHS Foundation Trust,16/09/2021,Drugs, Drugs,NORTHERN CARE ALLIANCE NHS FT,664197,"431,191.31",
Department of Health,The Christie NHS Foundation Trust,16/09/2021,Drugs, Drugs,NORTHERN CARE ALLIANCE NHS FT,664202,"86,238.26",
Department of Health,The Christie NHS Foundation Trust,23/09/2021,Drugs, Drugs,THE CHRISTIE CLINIC (HCA),675388,"38,754.00",
Department of Health,The Christie NHS Foundation Trust,02/09/2021,Service Contract,Clin Support & Spec Surgery,FUJIFILM UK LTD,673053,"24,891.00",
Department of Health,The Christie NHS Foundation Trust,09/09/2021,GM Pharmacy Logistics Tender,Clin Support & Spec Surgery,HEMPSON SOLICITORS,672281,"30,013.00",
Department of Health,The Christie NHS Foundation Trust,23/09/2021,Clinical Nurse Specialist Recharge Q1 21/22,Clin Support & Spec Surgery,MANCHESTER UNIVERSITY NHS FT,672521,"28,212.00",
Department of Health,The Christie NHS Foundation Trust,16/09/2021,Provider to Provider' Income - Month 5,Clin Support & Spec Surgery,NORTHERN CARE ALLIANCE NHS FT,651811,"57,688.84",
Department of Health,The Christie NHS Foundation Trust,16/09/2021,Provider to Provider' Income - Month 6,Clin Support & Spec Surgery,NORTHERN CARE ALLIANCE NHS FT,653825,"419,888.84",
Department of Health,The Christie NHS Foundation Trust,16/09/2021,Service Contract,Network Services,BRAINLAB LTD,675714,"40,260.00",
Department of Health,The Christie NHS Foundation Trust,09/09/2021,Medical Equipment,Network Services,GILEAD SCIENCES LTD,673971,"224,360.80",
Department of Health,The Christie NHS Foundation Trust,16/09/2021,Reclining Medical Chairs,Network Services,HOSPITAL METALCRAFT LTD,675616,"27,842.84",
Department of Health,The Christie NHS Foundation Trust,23/09/2021,Provision Service Charges - September 2021,Network Services,MID CHESHIRE HOSPITALS NHS FT,675142,"52,893.00",
Department of Health,The Christie NHS Foundation Trust,09/09/2021,Blood Products,Network Services,NHS BLOOD AND TRANSPLANT,674069,"28,346.66",
Department of Health,The Christie NHS Foundation Trust,02/09/2021,Blood Products,Network Services,NHS BLOOD AND TRANSPLANT,673918,"42,989.50",
Department of Health,The Christie NHS Foundation Trust,16/09/2021,Provider to Provider Income - Months 1-4,Network Services,NORTHERN CARE ALLIANCE NHS FT,651810,"233,755.37",
Department of Health,The Christie NHS Foundation Trust,16/09/2021,Patient Accomodation,Network Services,STAYCITY MANCHESTER LTD,673644,"150,664.35",
Department of Health,The Christie NHS Foundation Trust,09/09/2021,Month 1-4 Christie Chemotherapy SLA Invoice,Network Services,STOCKPORT NHS FOUNDATION TRUST,674212,"122,868.00",
Department of Health,The Christie NHS Foundation Trust,09/09/2021, Month 5 Chemotherapy SLA Invoice,Network Services,STOCKPORT NHS FOUNDATION TRUST,674221,"30,717.00",
Department of Health,The Christie NHS Foundation Trust,02/09/2021,Haematology Tameside Service Transfer,Network Services,TAMESIDE AND GLOSSOP INTEGRATED CARE NHS,673913,"56,640.00",
Department of Health,The Christie NHS Foundation Trust,16/09/2021,Development Project Expansion Fee,Network Services,UNIVERSITY OF SALFORD,674509,"26,744.26",
Department of Health,The Christie NHS Foundation Trust,09/09/2021,Facilities Management Services - September 2021,Christie Pathology Partner,CPP FACILITIES LLP,673962,"180,459.88",
Department of Health,The Christie NHS Foundation Trust,16/09/2021,Facilities Management Services - June 2021,Christie Pathology Partner,CPP FACILITIES LLP,675779,"237,703.25",
Department of Health,The Christie NHS Foundation Trust,16/09/2021,Facilities Management Services - July 2021,Christie Pathology Partner,CPP FACILITIES LLP,675476,"245,473.35",
Department of Health,The Christie NHS Foundation Trust,16/09/2021,Facilities Management Services - October 2021,Christie Pathology Partner,CPP FACILITIES LLP,675601,"180,459.88",
Department of Health,The Christie NHS Foundation Trust,16/09/2021,Pathology Testing Services - June 2021,Christie Pathology Partner,THE CHRISTIE PATHOLOGY PARTNERSHIP LLP,675777,"500,178.70",
Department of Health,The Christie NHS Foundation Trust,16/09/2021,Pathology Testing Services - July 2021,Christie Pathology Partner,THE CHRISTIE PATHOLOGY PARTNERSHIP LLP,675474,"516,528.68",
Department of Health,The Christie NHS Foundation Trust,16/09/2021,Pathology Testing Services - October 2021,Christie Pathology Partner,THE CHRISTIE PATHOLOGY PARTNERSHIP LLP,675599,"379,726.40",
Department of Health,The Christie NHS Foundation Trust,09/09/2021,Pathology Testing Services - September 2021,Christie Pathology Partner,THE CHRISTIE PATHOLOGY PARTNERSHIP LLP,673957,"379,726.40",
Department of Health,The Christie NHS Foundation Trust,15/09/2021,"CNST, LTPS & PES Direct Debit - September 2021",Quality & Standards,DD NHS RESOLUTION,675840,"177,439.90",
Department of Health,The Christie NHS Foundation Trust,07/09/2021,Rates,Estates & Facilities,DD M/CR CITY COUNCIL (RATES),675480,"75,629.00",
Department of Health,The Christie NHS Foundation Trust,09/09/2021,Fixed SLA & Rental of Building - August 2021,Estates & Facilities,NORTHERN CARE ALLIANCE NHS FT,674210,"25,974.41",
Department of Health,The Christie NHS Foundation Trust,09/09/2021,Education & Training Hub & Spoke Recharges,Other Income Levies and Gra,MANCHESTER UNIVERSITY NHS FT,674041,"51,479.00",
Department of Health,The Christie NHS Foundation Trust,23/09/2021,Patient Treatment,Other Income Levies and Gra,THE CHRISTIE CLINIC (HCA),675412,"131,041.40",
Department of Health,The Christie NHS Foundation Trust,02/09/2021,Patient Treatment,Other Income Levies and Gra,THE CHRISTIE CLINIC (HCA),673791,"183,584.00",
Department of Health,The Christie NHS Foundation Trust,09/09/2021,PET-CT Recharge,Christie Medical Physics,ALLIANCE MEDICAL LTD,674005,"85,020.00",
Department of Health,The Christie NHS Foundation Trust,09/09/2021,Drugs,Christie Medical Physics,ALLIANCE MEDICAL RADIOPHARMACY LIMITED,674363,"26,488.26",
Department of Health,The Christie NHS Foundation Trust,09/09/2021,Drugs,Christie Medical Physics,ALLIANCE MEDICAL RADIOPHARMACY LIMITED,674364,"30,621.18",
Department of Health,The Christie NHS Foundation Trust,30/09/2021,Research Services, Research & Innovation,UNIVERSITY OF LEEDS,676579,"53,343.20",
Department of Health,The Christie NHS Foundation Trust,30/09/2021,Consultancy Fee Costs,Capital,AIRE LOGIC LIMITED,675769,"52,570.00",
Department of Health,The Christie NHS Foundation Trust,23/09/2021,Architecture & Cloud Readiness,Capital,AIRE LOGIC LIMITED,675775,"23,475.00",
Department of Health,The Christie NHS Foundation Trust,23/09/2021,Architecture Costs,Capital,AIRE LOGIC LIMITED,675774,"23,475.00",
Department of Health,The Christie NHS Foundation Trust,16/09/2021,Project Management Fee,Capital,ARCADIS LLP,674601,"58,160.04",
Department of Health,The Christie NHS Foundation Trust,30/09/2021,Medical Equipment,Capital,INSIGHT DIRECT (UK) LTD,675227,"26,796.00",
Department of Health,The Christie NHS Foundation Trust,16/09/2021,Paterson Redevelopment Project Project Management Costs,Capital,INTEGRATED HEALTH PROJECTS,674788,"4,817,669.33",
Department of Health,The Christie NHS Foundation Trust,16/09/2021,Audit Fees,Capital,KPMG LLP,673243,"46,926.00",
Department of Health,The Christie NHS Foundation Trust,30/09/2021,Macclesfield Christie Capital Costs,Capital,NHS SUPPLY CHAIN,675782,"1,310,963.77",
Department of Health,The Christie NHS Foundation Trust,30/09/2021,Macclesfield Christie Medical Equipment,Capital,NHS SUPPLY CHAIN,675781,"1,533,220.44",
Department of Health,The Christie NHS Foundation Trust,16/09/2021,Medical Equipment,Capital,ONCOLOGY SYSTEMS LIMITED,673997,"30,987.60",
Department of Health,The Christie NHS Foundation Trust,16/09/2021,Medical Equipment,Capital,ONCOLOGY SYSTEMS LIMITED,675712,"25,823.00",
Department of Health,The Christie NHS Foundation Trust,16/09/2021,Macclesfield Christie Construction Works,Capital,VINCI CONSTRUCTION UK LIMITED,675665,"635,355.60",
Department of Health,The Christie NHS Foundation Trust,16/09/2021,Cark Park Construction Works,Capital,VINCI CONSTRUCTION UK LIMITED,675459,"1,274,617.00",
Department of Health,The Christie NHS Foundation Trust,30/09/2021,Energy Costs,Capital,VITAL ENERGI SOLUTIONS LTD,675791,"153,675.13",
Department of Health,The Christie NHS Foundation Trust,30/09/2021,Energy Costs,Capital,VITAL ENERGI SOLUTIONS LTD,675790,"241,144.66",
Department of Health,The Christie NHS Foundation Trust,09/09/2021,Medical Equipment,Manchester Cancer,NORTHERN CARE ALLIANCE NHS FT,674039,"48,810.00",
Department of Health,The Christie NHS Foundation Trust,23/09/2021,Printer Ink,Digital Services,APOGEE CORPORATION LTD,674898,"37,544.10",
Department of Health,The Christie NHS Foundation Trust,02/09/2021,Implementation Software Support and Licence Fee,Digital Services,INSIGHT DIRECT (UK) LTD,674929,"390,000.00",
Department of Health,The Christie NHS Foundation Trust,02/09/2021,Medical Equipment,Digital Services,PARITY COMPUTERS LTD,671707,"84,588.00",
Department of Health,The Christie NHS Foundation Trust,30/09/2021,System Support - October 2021,Digital Services,SYSTEM C HEALTHCARE,676045,"23,362.71",
Department of Health,The Christie NHS Foundation Trust,02/09/2021,System Support - September 2021,Digital Services,SYSTEM C HEALTHCARE,673473,"23,362.71",
Department of Health,The Christie NHS Foundation Trust,09/09/2021,Virgin Media Monthly Invoice ,Digital Services,VIRGIN MEDIA BUSINESS,675205,"43,666.00",
